bitfinex/quotes_BTCUSD_20240819
["timestamp","ask_amount","ask_price","bid_price","bid_amount"]
[1724033159080,0.002822,58661.0,58660.0,1.11015641]
[1724033160105,0.002822,58661.0,58660.0,2.61015641]
[1724033161283,0.002822,58661.0,58660.0,2.59615641]
[1724033161498,0.000822,58661.0,58660.0,2.99637395]
[1724033161718,0.000822,58663.0,58662.0,0.84042841]
[1724033161921,0.000822,58663.0,58662.0,1.38983795]
[1724033162241,0.000822,58663.0,58662.0,1.48983795]
[1724033162646,0.000822,58663.0,58662.0,2.98983795]
[1724033163189,0.000822,58663.0,58662.0,2.98583795]
[1724033163394,0.000822,58663.0,58662.0,2.99983795]
[1724033163805,0.000822,58663.0,58662.0,3.00283795]
[1724033164047,0.000822,58663.0,58662.0,2.98883795]
[1724033164257,0.000822,58663.0,58662.0,3.00283795]
[1724033164660,0.000822,58663.0,58662.0,3.01683795]
[1724033164840,0.000822,58663.0,58662.0,3.00383795]
[1724033165205,0.000822,58663.0,58662.0,3.01783795]
[1724033167284,0.000822,58663.0,58662.0,3.01383795]
[1724033167501,0.000822,58663.0,58662.0,3.30543795]
[1724033168445,0.000822,58663.0,58662.0,3.13043795]
[1724033171256,0.000822,58663.0,58662.0,2.89078295]
[1724033173073,0.000822,58663.0,58662.0,0.76397341]
[1724033173313,0.000822,58663.0,58662.0,0.88057341]
[1724033173533,0.000822,58663.0,58662.0,1.29178295]
[1724033173996,0.000822,58663.0,58662.0,1.27778295]
[1724033174225,0.000822,58663.0,58662.0,1.26578295]
[1724033174460,0.000822,58663.0,58662.0,1.27978295]
[1724033174681,0.000822,58663.0,58662.0,1.55178295]
[1724033174893,0.000822,58663.0,58662.0,1.56678295]
[1724033175116,0.000822,58663.0,58662.0,1.56878295]
[1724033175349,0.000822,58663.0,58662.0,1.55478295]
[1724033175784,0.000822,58663.0,58662.0,1.56878295]
[1724033176197,0.000822,58663.0,58662.0,1.56578295]
[1724033176406,0.000822,58663.0,58662.0,1.56678295]
[1724033176817,0.000822,58663.0,58662.0,3.06678295]
[1724033177209,0.000822,58663.0,58662.0,3.06878295]
[1724033179935,0.000822,58663.0,58662.0,3.07078295]
[1724033182483,0.000822,58663.0,58662.0,3.30943795]
[1724033182645,0.000822,58663.0,58662.0,3.07078295]
[1724033185771,0.000822,58663.0,58662.0,3.30943795]
[1724033186799,0.000822,58663.0,58662.0,3.07078295]
[1724033187231,0.000822,58663.0,58662.0,3.06678295]
[1724033187440,0.000822,58663.0,58662.0,2.82712795]
[1724033188365,0.000822,58663.0,58662.0,3.06578295]
[1724033188799,0.000822,58663.0,58662.0,2.82712795]
[1724033189399,0.000822,58663.0,58662.0,3.06578295]
[1724033189611,0.000822,58663.0,58662.0,0.14746341]
[1724033189816,0.080722,58663.0,58662.0,0.38611841]
[1724033190019,0.000822,58663.0,58662.0,0.62477341]
[1724033190631,0.000822,58663.0,58662.0,0.38611841]
[1724033191215,0.000822,58663.0,58662.0,0.02813641]
[1724033191417,0.067022,58663.0,58662.0,0.02813641]
[1724033191617,0.000822,58663.0,58662.0,0.14746341]
[1724033191826,0.00813561,58663.0,58662.0,0.14746341]
[1724033191997,0.000822,58663.0,58662.0,0.14746341]
[1724033192203,0.00813561,58663.0,58662.0,0.13346341]
[1724033192408,0.000822,58663.0,58662.0,0.13346341]
[1724033192630,0.00813561,58663.0,58662.0,0.01413641]
[1724033192828,0.000822,58663.0,58662.0,0.02813641]
[1724033193049,0.000822,58663.0,58662.0,0.01413641]
[1724033193050,0.00813561,58663.0,58662.0,0.01413641]
[1724033193250,0.000822,58663.0,58662.0,0.01413641]
[1724033193459,0.00813561,58663.0,58662.0,0.02813641]
[1724033193745,0.000822,58663.0,58662.0,0.02813641]
[1724033194101,0.00813561,58663.0,58662.0,0.02813641]
[1724033194324,0.00813561,58663.0,58662.0,0.14746341]
[1724033194735,0.00813561,58663.0,58662.0,0.38952745]
[1724033194945,0.000822,58663.0,58662.0,0.38952745]
[1724033195509,0.000822,58663.0,58662.0,2.12818245]
[1724033196566,0.000822,58663.0,58662.0,2.24488245]
[1724033198021,0.000822,58663.0,58662.0,2.00281841]
[1724033198921,0.000822,58663.0,58662.0,2.24147341]
[1724033200321,0.000822,58663.0,58662.0,2.00281841]
[1724033201193,0.000822,58663.0,58662.0,2.24147341]
[1724033205104,0.000822,58663.0,58662.0,2.39007341]
[1724033205748,0.000822,58663.0,58662.0,0.89007341]
[1724033206106,0.000822,58663.0,58662.0,2.39007341]
[1724033206308,0.000822,58663.0,58662.0,2.62972841]
[1724033208456,0.000822,58663.0,58662.0,3.04293795]
[1724033208664,0.000822,58663.0,58662.0,3.14393795]
[1724033208979,0.00016176,58663.0,58662.0,3.14393795]
[1724033209156,0.00016176,58663.0,58662.0,3.12993795]
[1724033210603,0.00016176,58663.0,58662.0,3.14393795]
[1724033210805,0.00016176,58663.0,58662.0,3.12993795]
[1724033212105,0.00016176,58663.0,58662.0,3.12593795]
[1724033212399,0.00016176,58663.0,58662.0,3.12993795]
[1724033212759,0.00016176,58663.0,58662.0,2.90128295]
[1724033213686,0.00016176,58663.0,58662.0,2.90328295]
[1724033214341,0.00016176,58663.0,58662.0,2.90528295]
[1724033215308,0.00016176,58663.0,58662.0,3.14393795]
[1724033216435,0.00016176,58663.0,58662.0,2.90528295]
[1724033217775,0.00016176,58663.0,58662.0,3.14393795]
[1724033217971,0.00822,58675.0,58674.0,1.09345741]
[1724033218181,0.00822,58675.0,58674.0,1.19345741]
[1724033218376,0.00822,58675.0,58674.0,1.19545741]
[1724033218570,0.00822,58675.0,58674.0,1.19245741]
[1724033219901,0.00822,58675.0,58674.0,1.20645741]
[1724033220220,0.00822,58675.0,58674.0,2.70645741]
[1724033220634,0.00822,58675.0,58674.0,2.72045741]
[1724033220835,0.00822,58675.0,58674.0,2.57617898]
[1724033221598,0.00822,58675.0,58674.0,2.59017898]
[1724033221802,0.00822,58675.0,58674.0,2.57617898]
[1724033222000,0.00822,58675.0,58674.0,2.59017898]
[1724033223322,0.00822,58675.0,58674.0,1.09017898]
[1724033223724,0.00822,58675.0,58674.0,1.23707898]
[1724033223991,0.00822,58675.0,58674.0,2.73807898]
[1724033224880,0.00822,58675.0,58674.0,2.73607898]
[1724033225421,0.00822,58675.0,58674.0,2.59017898]
[1724033225646,0.00822,58675.0,58674.0,2.57995741]
[1724033225860,0.00822,58675.0,58674.0,0.72465141]
[1724033225861,0.08592,58675.0,58674.0,0.72465141]
[1724033226077,0.08592,58675.0,58674.0,0.84135141]
[1724033226319,0.00822,58675.0,58674.0,0.84135141]
[1724033230121,0.00822,58675.0,58674.0,2.34135141]
[1724033231801,0.00822,58675.0,58674.0,2.57995741]
[1724033232817,0.00822,58675.0,58674.0,1.07995741]
[1724033233019,0.00822,58675.0,58674.0,1.33231195]
[1724033233262,0.00822,58675.0,58674.0,1.39101195]
[1724033233484,0.00822,58675.0,58674.0,2.89101195]
[1724033233840,0.00822,58675.0,58674.0,2.87701195]
[1724033234261,0.00822,58675.0,58674.0,2.57995741]
[1724033234687,0.00822,58675.0,58674.0,0.82735141]
[1724033234890,0.00822,58675.0,58674.0,0.81335141]
[1724033235308,0.00822,58675.0,58674.0,0.82735141]
[1724033235899,0.07272,58675.0,58674.0,0.60274541]
[1724033236147,0.15002,58675.0,58674.0,0.04213641]
[1724033236565,0.15734045,58675.0,58674.0,0.02813641]
[1724033236962,0.15734045,58675.0,58674.0,0.16143941]
[1724033237389,0.15734045,58675.0,58674.0,0.40004541]
[1724033237728,0.15002,58675.0,58674.0,0.40004541]
[1724033238071,0.15734045,58675.0,58674.0,0.40004541]
[1724033238970,0.15734045,58675.0,58674.0,0.16143941]
[1724033239174,0.15734045,58675.0,58674.0,0.04213641]
[1724033239717,0.51524345,58675.0,58674.0,0.04213641]
[1724033239915,0.27664145,58675.0,58674.0,0.04213641]
[1724033240141,0.51524345,58675.0,58674.0,0.04213641]
[1724033240606,0.27664145,58675.0,58674.0,0.02813641]
[1724033240823,0.15734045,58675.0,58674.0,0.04213641]
[1724033241062,0.15734045,58675.0,58674.0,0.15883641]
[1724033241268,0.15734045,58675.0,58674.0,0.13083641]
[1724033241688,0.15734045,58675.0,58674.0,0.14483641]
[1724033244940,0.15002,58675.0,58674.0,0.14483641]
[1724033245087,0.15733339,58675.0,58674.0,0.14483641]
[1724033246271,0.01553339,58675.0,58674.0,0.50274541]
[1724033246482,0.01553339,58675.0,58674.0,0.74135141]
[1724033246684,0.00822,58675.0,58674.0,0.74135141]
[1724033248040,0.00822,58675.0,58674.0,0.50274541]
[1724033248244,0.07182,58675.0,58674.0,0.50274541]
[1724033248657,0.07913398,58675.0,58674.0,0.50274541]
[1724033249300,0.15773398,58675.0,58674.0,0.26413941]
[1724033249501,0.15042,58675.0,58674.0,0.26413941]
[1724033249894,0.15773398,58675.0,58674.0,0.26413941]
[1724033251735,0.09413398,58675.0,58674.0,0.26413941]
[1724033252858,0.09413398,58675.0,58674.0,0.14483641]
[1724033253431,0.09413398,58675.0,58674.0,0.02813641]
[1724033253828,0.15893398,58675.0,58674.0,0.02813641]
[1724033256736,0.27823498,58675.0,58674.0,0.02813641]
[1724033257506,0.51683698,58675.0,58674.0,0.028]
[1724033258251,0.51683698,58675.0,58674.0,0.014]
[1724033258456,0.119303,58674.0,58673.0,0.00013641]
[1724033259014,0.12660175,58674.0,58673.0,0.00013641]
[1724033260019,0.12660175,58674.0,58673.0,0.00913641]
[1724033261222,0.12660175,58674.0,58673.0,0.01713641]
[1724033262126,0.60381375,58674.0,58673.0,0.01713641]
[1724033262399,0.74431375,58674.0,58673.0,0.01713641]
[1724033262931,0.74431375,58674.0,58673.0,0.017]
[1724033262932,0.79547537,58674.0,58673.0,0.017]
[1724033263105,0.79547537,58674.0,58673.0,0.01713641]
[1724033264000,0.74431375,58674.0,58673.0,0.01713641]
[1724033266187,0.89830935,58674.0,58673.0,0.01713641]
[1724033267132,0.83410935,58674.0,58673.0,0.01713641]
[1724033267506,0.59550335,58674.0,58673.0,0.01713641]
[1724033273201,0.51920335,58674.0,58673.0,0.01713641]
[1724033273851,0.00729875,58674.0,58673.0,0.09613641]
[1724033273997,0.00729875,58674.0,58673.0,0.75866141]
[1724033274204,0.00822,58675.0,58673.0,0.57335641]
[1724033274401,0.00822,58675.0,58674.0,0.85375141]
[1724033274869,0.00822,58675.0,58674.0,2.35375141]
[1724033275226,0.00822,58675.0,58674.0,1.87653941]
[1724033275629,0.01551146,58675.0,58674.0,0.37653941]
[1724033275898,0.01551146,58675.0,58674.0,0.38853941]
[1724033277163,0.01551146,58675.0,58674.0,0.40153941]
[1724033278747,0.01551146,58675.0,58674.0,0.87875141]
[1724033279088,0.00822,58675.0,58674.0,0.87875141]
[1724033283038,0.00822,58675.0,58674.0,0.52344541]
[1724033283244,0.00822,58675.0,58674.0,0.02513641]
[1724033283424,0.01552136,58675.0,58674.0,0.02513641]
[1724033284405,0.01552136,58675.0,58674.0,0.14443941]
[1724033285954,0.01552136,58675.0,58674.0,0.02513641]
[1724033286974,0.01552136,58675.0,58674.0,0.26113941]
[1724033288019,0.01552136,58675.0,58674.0,0.88575141]
[1724033288432,0.00822,58675.0,58674.0,0.88575141]
[1724033289061,0.00822,58675.0,58674.0,1.12435741]
[1724033289918,0.00822,58675.0,58674.0,1.11135741]
[1724033290121,0.00822,58675.0,58674.0,1.09935741]
[1724033290293,0.00822,58675.0,58674.0,1.11335741]
[1724033290835,0.00822,58675.0,58674.0,1.09935741]
[1724033291457,0.00822,58675.0,58674.0,1.12735741]
[1724033299161,0.10228537,58688.0,58678.0,0.98690141]
[1724033299162,0.05114268,58688.0,58678.0,0.98690141]
[1724033299367,0.00821,58696.0,58678.0,1.45111519]
[1724033299494,0.00821,58696.0,58678.0,3.32916501]
[1724033299696,0.00821,58696.0,58678.0,3.56775501]
[1724033300521,0.00821,58696.0,58678.0,3.16433091]
[1724033301015,0.00821,58696.0,58678.0,3.17833091]
[1724033301223,0.00821,58696.0,58678.0,3.12774595]
[1724033301421,0.00821,58696.0,58678.0,3.17830746]
[1724033302457,0.00821,58696.0,58678.0,3.14174595]
[1724033302865,0.00821,58696.0,58678.0,3.12774595]
[1724033303012,0.00821,58696.0,58678.0,3.11374595]
[1724033303234,0.00821,58696.0,58678.0,3.12774595]
[1724033303431,0.00821,58696.0,58678.0,3.14174595]
[1724033303986,0.001022,58679.0,58678.0,3.14174595]
[1724033304182,0.001022,58679.0,58678.0,3.15185299]
[1724033304392,0.001022,58679.0,58678.0,3.13785299]
[1724033305183,0.001022,58679.0,58678.0,3.15185299]
[1724033306038,0.001022,58679.0,58678.0,3.13785299]
[1724033306464,0.001022,58679.0,58678.0,3.15185299]
[1724033306858,0.001022,58679.0,58678.0,3.16585299]
[1724033307453,0.001022,58679.0,58678.0,3.15185299]
[1724033307856,0.001022,58679.0,58678.0,3.16585299]
[1724033308493,0.001022,58679.0,58678.0,3.13785299]
[1724033309449,0.00821,58696.0,58695.0,0.74153841]
[1724033309691,0.00821,58696.0,58695.0,1.19675941]
[1724033310349,0.00821,58696.0,58695.0,2.69675941]
[1724033310789,0.00821,58696.0,58695.0,2.32613841]
[1724033310992,0.00821,58696.0,58695.0,0.47091741]
[1724033311192,0.00821,58696.0,58695.0,0.82613841]
[1724033311939,0.00821,58696.0,58695.0,0.83813841]
[1724033312576,0.08661,58696.0,58695.0,0.02513641]
[1724033312781,0.14771,58696.0,58695.0,0.14183641]
[1724033312999,0.14771,58696.0,58695.0,0.49961741]
[1724033313203,0.15947794,58696.0,58695.0,0.49961741]
[1724033313403,0.15947794,58696.0,58695.0,0.26109641]
[1724033314079,0.15947794,58696.0,58695.0,0.14183641]
[1724033314341,0.15947794,58696.0,58695.0,0.26109641]
[1724033314724,0.14771,58696.0,58695.0,0.26109641]
[1724033314936,0.15947794,58696.0,58695.0,0.14439641]
[1724033315138,0.15947794,58696.0,58695.0,0.26109641]
[1724033315307,0.15947794,58696.0,58695.0,0.49961741]
[1724033316826,0.09837794,58696.0,58695.0,0.49961741]
[1724033317027,0.01997794,58696.0,58695.0,0.49961741]
[1724033317229,0.01997794,58696.0,58695.0,0.64731741]
[1724033317473,0.01997794,58696.0,58695.0,1.12435941]
[1724033317681,0.00821,58696.0,58695.0,1.12435941]
[1724033317892,0.00821,58696.0,58695.0,1.29891395]
[1724033318049,0.00821,58696.0,58695.0,1.39891395]
[1724033318452,0.00821,58696.0,58695.0,1.38691395]
[1724033318878,0.00821,58696.0,58695.0,1.39829345]
[1724033319078,0.00821,58696.0,58695.0,1.38129345]
[1724033319280,0.00821,58696.0,58695.0,1.39629345]
[1724033319541,0.00821,58696.0,58695.0,1.41229345]
[1724033319955,0.00821,58696.0,58695.0,2.89829345]
[1724033320159,0.00821,58696.0,58695.0,2.91029345]
[1724033320360,0.00821,58696.0,58695.0,3.15281445]
[1724033321532,0.00821,58696.0,58695.0,3.13881445]
[1724033321947,0.00821,58696.0,58695.0,3.13381445]
[1724033322283,0.00821,58696.0,58695.0,1.40929345]
[1724033322885,0.00821,58696.0,58695.0,1.38129345]
[1724033323086,0.00821,58696.0,58695.0,1.40929345]
[1724033324679,0.00821,58696.0,58695.0,1.39529345]
[1724033325472,0.00821,58696.0,58695.0,1.40929345]
[1724033326183,0.00821,58696.0,58695.0,2.90929345]
[1724033329260,0.00821,58696.0,58695.0,1.40929345]
[1724033329659,0.00821,58696.0,58695.0,2.90929345]
[1724033330907,0.00821,58696.0,58695.0,2.91029345]
[1724033331115,0.00821,58696.0,58695.0,2.91229345]
[1724033331524,0.00821,58696.0,58695.0,2.90929345]
[1724033331927,0.00821,58696.0,58695.0,1.07965941]
[1724033333112,0.00821,58696.0,58695.0,1.16085941]
[1724033335880,0.00821,58696.0,58695.0,2.66085941]
[1724033339790,0.00821,58696.0,58695.0,2.72275941]
[1724033344487,0.00821,58696.0,58695.0,1.22275941]
[1724033348725,0.00821,58696.0,58695.0,2.72275941]
[1724033349791,0.00821,58696.0,58695.0,2.57965941]
[1724033351784,0.00821,58696.0,58695.0,2.64435941]
[1724033352657,0.00821,58696.0,58695.0,2.57965941]
[1724033352857,0.00821,58696.0,58695.0,1.07965941]
[1724033353572,0.15511,58696.0,58695.0,0.48591741]
[1724033353778,0.15511,58696.0,58695.0,0.50261741]
[1724033353988,0.15511,58696.0,58695.0,0.74113841]
[1724033354399,0.15511,58696.0,58695.0,0.48861741]
[1724033354827,0.15511,58696.0,58695.0,0.50261741]
[1724033355233,0.15511,58696.0,58695.0,0.48861741]
[1724033355705,0.15511,58696.0,58695.0,0.50261741]
[1724033356170,0.15511,58696.0,58695.0,0.48861741]
[1724033356641,0.15511,58696.0,58695.0,0.50261741]
[1724033357090,0.15511,58696.0,58695.0,0.26409641]
[1724033357719,0.15511,58696.0,58695.0,0.028]
[1724033357720,0.52498998,58696.0,58695.0,0.028]
[1724033358606,0.52498998,58696.0,58695.0,0.014]
[1724033358810,0.52498998,58696.0,58695.0,0.028]
[1724033359390,0.26216,58695.0,58694.0,0.00013641]
[1724033359591,0.500681,58695.0,58694.0,0.00013641]
[1724033359837,0.119264,58693.0,58692.0,0.00013641]
[1724033360043,0.266064,58693.0,58692.0,0.00013641]
[1724033360321,0.27817085,58693.0,58692.0,0.00013641]
[1724033361392,0.27817085,58693.0,58692.0,0.01013641]
[1724033361597,0.27817085,58693.0,58692.0,0.01913641]
[1724033362022,0.27817085,58693.0,58692.0,0.019]
[1724033362023,0.51669985,58693.0,58692.0,0.019]
[1724033362294,0.51669985,58693.0,58692.0,0.01]
[1724033362507,0.11927,58690.0,58689.0,0.00013641]
[1724033362730,0.26737,58690.0,58689.0,0.00013641]
[1724033362923,0.27943698,58690.0,58689.0,0.00013641]
[1724033363125,0.16016698,58690.0,58689.0,0.00013641]
[1724033363888,0.16016698,58690.0,58689.0,0.01113641]
[1724033364089,0.16016698,58690.0,58689.0,0.02313641]
[1724033364514,0.16016698,58690.0,58689.0,0.13983641]
[1724033366128,0.16016698,58690.0,58689.0,0.13954533]
[1724033367795,0.27943698,58690.0,58689.0,0.13954533]
[1724033368028,0.27943698,58690.0,58689.0,0.02284533]
[1724033368029,0.51797798,58690.0,58689.0,0.02284533]
[1724033368370,0.75651898,58690.0,58689.0,0.02284533]
[1724033368995,0.75434861,58690.0,58689.0,0.02284533]
[1724033370442,0.90602101,58690.0,58689.0,0.02284533]
[1724033370975,1.14456201,58690.0,58689.0,0.02284533]
[1724033371211,1.16756201,58690.0,58689.0,0.02284533]
[1724033372226,0.238565,58685.0,58679.0,0.0009042]
[1724033372496,0.119288,58682.0,58679.0,0.0009042]
[1724033372834,0.01201541,58681.0,58679.0,0.0009042]
[1724033374238,0.01201541,58681.0,58679.0,0.0099042]
[1724033375092,0.01201541,58681.0,58679.0,0.0219042]
[1724033375731,0.01201541,58681.0,58679.0,0.0129042]
[1724033375933,0.13130441,58681.0,58679.0,0.0129042]
[1724033376135,0.13130441,58681.0,58679.0,0.0229042]
[1724033377143,0.119291,58680.0,58679.0,0.0229042]
[1724033377338,0.36988717,58680.0,58679.0,0.0229042]
[1724033377984,0.74586917,58680.0,58679.0,0.0109042]
[1724033378192,0.89899342,58680.0,58679.0,0.0109042]
[1724033378401,0.89899342,58680.0,58679.0,0.0239042]
[1724033379249,0.89899342,58680.0,58679.0,0.0139042]
[1724033379250,1.14134543,58680.0,58679.0,0.0139042]
[1724033379450,1.16434543,58680.0,58679.0,0.0139042]
[1724033379651,1.16434543,58680.0,58679.0,0.0249042]
[1724033380482,1.16434543,58680.0,58679.0,0.0009042]
[1724033380880,1.16434543,58680.0,58679.0,0.0159042]
[1724033384980,1.28077997,58680.0,58679.0,0.0159042]
[1724033385484,1.16434543,58680.0,58679.0,0.0159042]
[1724033387265,0.62588143,58680.0,58679.0,0.0159042]
[1724033387439,0.52678143,58680.0,58679.0,0.0159042]
[1724033396434,0.76536343,58680.0,58679.0,0.0159042]
[1724033396637,1.04446343,58680.0,58679.0,0.0159042]
[1724033396846,1.38749177,58680.0,58679.0,0.0159042]
[1724033397422,1.28304543,58680.0,58679.0,0.0159042]
[1724033397847,1.04446343,58680.0,58679.0,0.0159042]
[1724033398426,1.28304543,58680.0,58679.0,0.0159042]
[1724033398890,1.04446343,58680.0,58679.0,0.0159042]
[1724033400148,1.28304543,58680.0,58679.0,0.0159042]
[1724033401143,1.33031809,58680.0,58679.0,0.0159042]
[1724033401375,1.28304543,58680.0,58679.0,0.0159042]
[1724033402329,1.28304543,58680.0,58679.0,0.0079042]
[1724033402575,0.92876343,58680.0,58679.0,0.0009042]
[1724033403078,0.93176343,58680.0,58679.0,0.0009042]
[1724033403274,0.92876343,58680.0,58679.0,0.0009042]
[1724033403478,0.92776343,58680.0,58679.0,0.0009042]
[1724033403683,1.01354515,58680.0,58679.0,0.0009042]
[1724033403877,1.25012715,58680.0,58679.0,0.0009042]
[1724033404098,1.42168169,58680.0,58679.0,0.0009042]
[1724033404303,1.42368169,58680.0,58679.0,0.0009042]
[1724033404508,1.42168169,58680.0,58679.0,0.0009042]
[1724033404709,1.25012715,58680.0,58679.0,0.0009042]
[1724033405109,1.24812715,58680.0,58679.0,0.0009042]
[1724033406175,1.25012715,58680.0,58679.0,0.0009042]
[1724033406397,1.25212715,58680.0,58679.0,0.0009042]
[1724033406799,1.25612715,58680.0,58679.0,0.0009042]
[1724033409496,1.30711024,58680.0,58679.0,0.0009042]
[1724033409700,1.71824678,58680.0,58679.0,0.0009042]
[1724033409902,1.77222988,58680.0,58679.0,0.0009042]
[1724033410238,1.76922988,58680.0,58679.0,0.0009042]
[1724033410559,1.7144818,58680.0,58679.0,0.0009042]
[1724033410762,1.7164818,58680.0,58679.0,0.0009042]
[1724033410968,1.61440915,58680.0,58679.0,0.0009042]
[1724033411377,1.61540915,58680.0,58679.0,0.0009042]
[1724033411587,1.61640915,58680.0,58679.0,0.0009042]
[1724033411801,1.62674226,58680.0,58679.0,0.0009042]
[1724033413104,1.76783775,58680.0,58679.0,0.0009042]
[1724033414298,1.62574226,58680.0,58679.0,0.0009042]
[1724033414507,1.38416026,58680.0,58679.0,0.0009042]
[1724033414979,1.62474226,58680.0,58679.0,0.0009042]
[1724033415234,1.62574226,58680.0,58679.0,0.0009042]
[1724033415885,1.75313534,58680.0,58679.0,0.0009042]
[1724033416120,1.92468988,58680.0,58679.0,0.0009042]
[1724033416577,1.80498988,58680.0,58679.0,0.0009042]
[1724033416780,1.91468988,58680.0,58679.0,0.0009042]
[1724033417022,1.92468988,58680.0,58679.0,0.0019042]
[1724033417300,1.92468988,58680.0,58679.0,2e-07]
[1724033417301,1.94868988,58680.0,58679.0,2e-07]
[1724033417540,0.983122,58667.0,58666.0,0.0009042]
[1724033417793,1.57430695,58667.0,58666.0,0.0009042]
[1724033418063,1.68935392,58667.0,58666.0,0.0009042]
[1724033418301,2.13060996,58667.0,58666.0,0.0009042]
[1724033418544,1.9773729,58667.0,58666.0,0.0009042]
[1724033418803,2.14892744,58667.0,58666.0,0.0009042]
[1724033419324,2.14992912,58667.0,58666.0,0.0009042]
[1724033419546,2.12354346,58667.0,58666.0,0.0009042]
[1724033420510,2.4518648,58667.0,58666.0,0.0009042]
[1724033420743,2.4588648,58667.0,58666.0,0.0009042]
[1724033421228,2.4578648,58667.0,58666.0,0.0009042]
[1724033421481,2.31084346,58667.0,58666.0,0.0019042]
[1724033422022,2.3200065,58667.0,58666.0,0.0019042]
[1724033422254,2.3210065,58667.0,58666.0,0.0019042]
[1724033423434,2.3190065,58667.0,58666.0,0.0019042]
[1724033423654,2.3210065,58667.0,58666.0,0.0019042]
[1724033425060,2.47402784,58667.0,58666.0,0.0019042]
[1724033425560,2.3210065,58667.0,58666.0,0.0019042]
[1724033425759,2.3210065,58667.0,58666.0,0.0009042]
[1724033425760,2.3150065,58667.0,58666.0,0.0009042]
[1724033426281,2.3210065,58667.0,58666.0,0.0019042]
[1724033426491,2.3350065,58667.0,58666.0,0.0019042]
[1724033429297,1.308947,58662.0,58661.0,4e-07]
[1724033429465,0.235,58655.0,58654.0,6e-07]
[1724033429703,3.28330214,58655.0,58654.0,6e-07]
[1724033429934,3.65790629,58655.0,58654.0,6e-07]
[1724033430179,3.89658929,58655.0,58654.0,6e-07]
[1724033431313,3.90958929,58655.0,58654.0,6e-07]
[1724033431919,3.92358929,58655.0,58654.0,6e-07]
[1724033432234,3.90958929,58655.0,58654.0,6e-07]
[1724033432436,4.03670921,58655.0,58654.0,6e-07]
[1724033432818,4.03770921,58655.0,58654.0,6e-07]
[1724033433191,4.04870921,58655.0,58654.0,6e-07]
[1724033433395,4.05170921,58655.0,58654.0,6e-07]
[1724033433799,4.06202927,58655.0,58654.0,6e-07]
[1724033435398,3.93490935,58655.0,58654.0,6e-07]
[1724033436415,4.03652588,58655.0,58654.0,6e-07]
[1724033436821,4.03652812,58655.0,58654.0,6e-07]
[1724033437022,3.91140935,58655.0,58654.0,6e-07]
[1724033437458,3.9876091,58655.0,58654.0,6e-07]
[1724033437657,3.96221063,58655.0,58654.0,6e-07]
[1724033438553,3.72352763,58655.0,58654.0,6e-07]
[1724033439303,3.67272635,58655.0,58654.0,6e-07]
[1724033439447,3.89508217,58655.0,58654.0,6e-07]
[1724033440313,3.84428089,58655.0,58654.0,6e-07]
[1724033440482,3.75388217,58655.0,58654.0,6e-07]
[1724033440724,3.06584335,58655.0,58654.0,6e-07]
[1724033440929,1.75634335,58655.0,58654.0,6e-07]
[1724033441576,1.35402329,58655.0,58654.0,6e-07]
[1724033441760,1.34002329,58655.0,58654.0,6e-07]
[1724033441984,1.37702329,58655.0,58654.0,6e-07]
[1724033442540,1.41655317,58655.0,58654.0,6e-07]
[1724033442740,1.42855317,58655.0,58654.0,6e-07]
[1724033443119,1.52855317,58655.0,58654.0,6e-07]
[1724033443330,1.47502329,58655.0,58654.0,6e-07]
[1724033443588,1.46102329,58655.0,58654.0,6e-07]
[1724033443962,1.46202329,58655.0,58654.0,6e-07]
[1724033444162,1.44802329,58655.0,58654.0,6e-07]
[1724033444445,1.45802329,58655.0,58654.0,6e-07]
[1724033444647,1.47102329,58655.0,58654.0,6e-07]
[1724033446260,1.47202329,58655.0,58654.0,6e-07]
[1724033446462,1.5671044,58655.0,58654.0,6e-07]
[1724033447067,2.8466044,58655.0,58654.0,6e-07]
[1724033447266,2.8366044,58655.0,58654.0,6e-07]
[1724033447476,2.8236044,58655.0,58654.0,6e-07]
[1724033447837,3.1156044,58655.0,58654.0,6e-07]
[1724033448038,3.1176044,58655.0,58654.0,6e-07]
[1724033448242,3.1416044,58655.0,58654.0,6e-07]
[1724033448469,3.19442463,58655.0,58654.0,6e-07]
[1724033448674,3.19642463,58655.0,58654.0,6e-07]
[1724033448893,3.18442463,58655.0,58654.0,6e-07]
[1724033449426,3.19642463,58655.0,58654.0,6e-07]
[1724033449632,3.19724663,58655.0,58654.0,6e-07]
[1724033450143,3.18324663,58655.0,58654.0,6e-07]
[1724033450598,3.1464264,58655.0,58654.0,6e-07]
[1724033451539,3.22265675,58655.0,58654.0,6e-07]
[1724033452704,3.1464264,58655.0,58654.0,6e-07]
[1724033453336,3.24806687,58655.0,58654.0,6e-07]
[1724033454330,3.27347699,58655.0,58654.0,6e-07]
[1724033454979,3.27370917,58655.0,58654.0,6e-07]
[1724033455385,3.1464264,58655.0,58654.0,6e-07]
[1724033455997,3.4949094,58655.0,58654.0,6e-07]
[1724033456604,3.3197094,58655.0,58654.0,6e-07]
[1724033457010,3.3057094,58655.0,58654.0,6e-07]
[1724033457217,3.3197094,58655.0,58654.0,6e-07]
[1724033457625,3.3077094,58655.0,58654.0,6e-07]
[1724033457817,3.3217094,58655.0,58654.0,6e-07]
[1724033457971,3.3077094,58655.0,58654.0,6e-07]
[1724033458391,3.46044873,58655.0,58654.0,6e-07]
[1724033458732,3.47444873,58655.0,58654.0,6e-07]
[1724033458940,3.53794873,58655.0,58654.0,6e-07]
[1724033459135,3.52394873,58655.0,58654.0,6e-07]
[1724033459334,3.3712094,58655.0,58654.0,6e-07]
[1724033460200,3.3852094,58655.0,58654.0,6e-07]
[1724033460400,3.3712094,58655.0,58654.0,6e-07]
[1724033460965,3.3852094,58655.0,58654.0,6e-07]
[1724033461431,3.55704115,58655.0,58654.0,6e-07]
[1724033461639,3.78172415,58655.0,58654.0,6e-07]
[1724033461842,1.51796,58646.0,58645.0,0.0009042]
[1724033462042,2.12552282,58646.0,58645.0,0.0009042]
[1724033463065,2.38724282,58646.0,58645.0,2e-07]
[1724033463311,2.55960908,58646.0,58645.0,2e-07]
[1724033463517,2.73116362,58646.0,58645.0,2e-07]
[1724033463911,2.74516362,58646.0,58645.0,2e-07]
[1724033464274,2.58279736,58646.0,58645.0,2e-07]
[1724033464470,2.93062914,58646.0,58645.0,2e-07]
[1724033464891,2.92062914,58646.0,58645.0,2e-07]
[1724033465100,2.74819736,58646.0,58645.0,2e-07]
[1724033465296,2.75919736,58646.0,58645.0,2e-07]
[1724033465716,2.74819736,58646.0,58645.0,2e-07]
[1724033465966,2.76219736,58646.0,58645.0,2e-07]
[1724033466170,2.74819736,58646.0,58645.0,2e-07]
[1724033466553,2.76219736,58646.0,58645.0,2e-07]